bitfinex/quotes_ETHUSD_20241030
["timestamp","ask_amount","ask_price","bid_price","bid_amount"]
[1730301089614,3.70077,2702.2,2701.3,3.74717988]
[1730301089789,3.70077,2702.2,2701.4,3.77571789]
[1730301089985,3.70077,2702.2,2701.5,0.7831]
[1730301090237,3.70044,2702.4,2701.5,4.52973116]
[1730301090399,3.70063,2702.3,2701.6,0.53442373]
[1730301090728,3.70049,2702.4,2701.6,4.20685069]
[1730301090931,3.70049,2702.4,2701.6,3.7465177]
[1730301091132,11.31987057,2702.9,2701.7,0.8135]
[1730301091133,7.62009057,2702.9,2701.7,0.8135]
[1730301091289,3.70029,2702.5,2701.7,0.85839921]
[1730301091492,7.62009057,2702.9,2701.7,0.85839921]
[1730301091691,3.70049,2702.4,2701.7,0.85839921]
[1730301091935,3.70014,2702.6,2701.7,0.85839921]
[1730301091936,3.70083,2702.1,2701.7,0.8135]
[1730301092241,3.7005,2702.4,2701.8,0.0448179]
[1730301092443,3.70069,2702.2,2701.8,0.0448179]
[1730301092624,3.7009,2702.1,2701.7,0.8135]
[1730301092830,3.70064,2702.3,2701.9,0.04475888]
[1730301093035,3.70072,2702.2,2701.7,0.8135]
[1730301093589,3.7005,2702.4,2701.8,0.04480675]
[1730301093771,3.7005,2702.4,2701.7,0.88751905]
[1730301093973,3.7005,2702.4,2701.9,0.04476445]
[1730301094298,3.7005,2702.4,2701.7,1.27240191]
[1730301094583,3.7005,2702.4,2701.7,0.8135]
[1730301094879,3.70109,2701.9,2701.8,0.04481232]
[1730301095085,7.40185,2702.1,2701.8,0.04481232]
[1730301095248,3.7009,2702.1,2701.7,0.8135]
[1730301095652,3.0,2702.6,2701.8,0.04480489]
[1730301095851,3.70076,2702.2,2701.8,0.04480489]
[1730301096055,3.70095,2702.1,2701.8,0.04480489]
[1730301096274,3.70109,2701.9,2701.7,0.8135]
[1730301096659,3.70068,2702.2,2701.2,0.7653]
[1730301096853,3.70143,2701.7,2701.2,0.7653]
[1730301097049,3.70153,2701.6,2701.2,0.7653]
[1730301097251,3.70143,2701.7,2701.2,0.7653]
[1730301097587,3.70178,2701.5,2701.2,0.7653]
[1730301097791,3.70096,2702.0,2701.2,0.7653]
[1730301097985,3.7011,2701.9,2701.2,0.7653]
[1730301098279,3.70139,2701.7,2701.2,0.7653]
[1730301099286,4.52372,2702.5,2701.3,0.07403548]
[1730301099287,3.7009,2702.1,2701.3,0.07403548]
[1730301099536,3.7009,2702.1,2701.4,0.07402711]
[1730301099693,3.7009,2702.1,2701.3,3.77589691]
[1730301100083,3.70098,2702.0,2701.3,0.08402691]
[1730301100322,3.7009,2702.1,2701.4,0.45513369]
[1730301100478,3.7009,2702.1,2701.4,0.07402698]
[1730301101205,3.70104,2702.0,2701.3,0.01]
[1730301101375,3.7009,2702.1,2701.3,0.08402698]
[1730301101724,3.70096,2702.0,2701.3,3.78586698]
[1730301102042,3.70096,2702.0,2701.2,0.7653]
[1730301102043,3.70033,2702.5,2701.5,0.01]
[1730301102179,3.70012,2702.7,2701.9,0.7595]
[1730301102521,3.69982,2702.9,2702.1,3.70082]
[1730301102679,3.69982,2702.9,2702.2,0.7595]
[1730301102886,3.69982,2702.9,2702.2,0.80377519]
[1730301103133,7.39965,2702.9,2702.2,1.32823924]
[1730301103314,3.69931,2703.2,2702.4,0.7595]
[1730301103521,3.69931,2703.2,2702.4,4.45989]
[1730301103716,3.69948,2703.1,2702.5,0.11812523]
[1730301103948,3.69931,2703.2,2702.5,0.11812523]
[1730301103949,3.70009,2702.7,2702.5,0.04412977]
[1730301104447,7.40018,2702.7,2702.5,0.04412977]
[1730301104634,3.70014,2702.6,2702.5,0.04412977]
[1730301104800,3.70014,2702.6,2702.4,0.7595]
[1730301104801,3.70027,2702.5,2702.4,0.7595]
[1730301105201,3.70027,2702.5,2701.6,0.01]
[1730301105202,3.70061,2702.3,2701.8,0.8227]
[1730301106125,3.70011,2702.7,2701.9,0.0740163]
[1730301106404,3.70011,2702.7,2701.8,4.98468163]
[1730301106405,3.70057,2702.3,2701.8,1.28352163]
[1730301106943,3.70071,2702.2,2701.8,0.8227]
[1730301107153,3.70057,2702.3,2701.8,0.8227]
[1730301107357,3.70068,2702.2,2701.8,0.8227]
[1730301107845,3.70075,2702.2,2701.8,0.8227]
[1730301108046,3.70057,2702.3,2701.8,0.8227]
[1730301109036,3.70027,2702.5,2701.9,0.07402015]
[1730301109350,3.70007,2702.7,2701.9,0.45980202]
[1730301109642,3.70028,2702.5,2701.9,0.45980202]
[1730301109944,3.70007,2702.7,2702.0,0.7823]
[1730301110315,3.70041,2702.4,2702.0,0.7823]
[1730301110502,3.70082,2702.1,2702.0,0.7823]
[1730301110858,3.70082,2702.1,2701.5,0.7823]
[1730301111003,3.70082,2702.1,2701.6,0.01]
[1730301111337,3.7009,2702.1,2701.6,0.07402099]
[1730301111845,3.70069,2702.2,2701.6,0.08402099]
[1730301112052,3.60069,2702.2,2701.6,0.08402099]
[1730301112452,3.70083,2702.1,2701.6,0.07402099]
[1730301112602,6.70027,2702.5,2701.5,0.7823]
[1730301112803,3.70126,2701.8,2701.5,0.7823]
[1730301113613,3.70116,2701.9,2701.5,0.7823]
[1730301114045,3.70151,2701.6,2701.5,0.7823]
[1730301114256,7.40285,2701.7,2701.5,0.7823]
[1730301114553,3.70151,2701.6,2701.5,0.7823]
[1730301114704,3.70089,2702.1,2701.5,5.20303594]
[1730301114914,3.70064,2702.3,2701.6,0.59433103]
[1730301115133,3.70064,2702.3,2701.6,4.29577103]
[1730301115954,3.70035,2702.5,2701.7,1.3777]
[1730301116261,3.69961,2703.0,2701.9,0.8054]
[1730301116411,3.70029,2702.5,2701.9,0.8054]
[1730301116604,3.70029,2702.5,2702.0,0.04151887]
[1730301117106,3.70009,2702.7,2702.0,0.04151887]
[1730301117353,3.70009,2702.7,2702.0,0.51540479]
[1730301117648,3.0,2702.6,2702.0,0.51540479]
[1730301117957,3.70009,2702.7,2702.0,0.58941504]
[1730301118154,3.70009,2702.7,2702.0,0.51540479]
[1730301118454,3.70009,2702.7,2702.0,4.21635479]
[1730301118603,3.70009,2702.7,2702.1,0.50217548]
[1730301118804,3.70009,2702.7,2702.2,0.04142314]
[1730301119452,3.69982,2702.9,2702.3,0.8269]
[1730301119660,3.69987,2702.8,2702.4,0.04124967]
[1730301119942,7.39964,2702.9,2702.4,0.04124967]
[1730301120262,3.70014,2702.6,2702.4,0.04124967]
[1730301120606,3.70027,2702.5,2702.4,0.04124967]
[1730301120936,3.70049,2702.4,2702.0,0.8269]
[1730301121318,3.70065,2702.3,2702.1,0.04137103]
[1730301121650,3.70068,2702.2,2702.1,0.04137103]
[1730301122054,3.70086,2702.1,2701.7,0.8062]
[1730301122257,3.70105,2702.0,2701.8,0.04151464]
[1730301122456,4.49897,2702.3,2701.7,0.8062]
[1730301122650,3.70123,2701.8,2701.1,0.8062]
[1730301122888,3.70111,2701.9,2701.2,0.04180195]
[1730301123036,3.70111,2701.9,2701.3,4.46791]
[1730301123346,3.70097,2702.0,2701.4,0.04170617]
[1730301123542,3.7013,2701.8,2701.4,0.04170617]
[1730301123748,7.40267,2701.8,2701.4,0.04170617]
[1730301123948,3.7013,2701.8,2701.4,0.04170617]
[1730301124149,3.70157,2701.6,2701.4,0.04170617]
[1730301124757,3.70164,2701.5,2701.4,0.04170617]
[1730301124959,6.70164,2701.5,2701.4,0.04170617]
[1730301125380,3.70248,2700.9,2700.7,0.7802]
[1730301125679,3.70257,2700.9,2700.8,0.04195011]
[1730301126261,3.70257,2700.9,2700.7,0.7802]
[1730301126262,3.7026,2700.8,2700.2,0.60610177]
[1730301126474,3.70272,2700.8,2700.3,0.86118971]
[1730301126682,3.70276,2700.7,2700.3,1.32321374]
[1730301126879,3.70302,2700.5,2700.3,0.86118971]
[1730301127161,3.70302,2700.5,2700.3,0.819]
[1730301127613,3.70315,2700.4,2700.3,0.819]
[1730301127981,3.70336,2700.3,2699.8,0.819]
[1730301128189,3.70319,2700.4,2699.8,1.24446511]
[1730301128565,3.70332,2700.3,2699.8,1.24446511]
[1730301128794,3.70352,2700.2,2699.8,1.24446511]
[1730301129065,0.8202,2700.5,2699.4,0.7878]
[1730301129268,3.70422,2699.7,2699.4,0.7878]
[1730301129467,3.70356,2700.1,2699.2,0.072316]
[1730301129710,3.70451,2699.5,2699.2,0.072316]
[1730301129873,3.70452,2699.4,2699.2,0.072316]
[1730301130389,6.70452,2699.4,2699.2,0.072316]
[1730301135408,15.10991057,2699.4,2699.2,0.072316]
[1730301135818,3.70451,2699.5,2699.2,0.072316]
[1730301135965,3.70452,2699.4,2699.2,0.072316]
[1730301136172,3.70429,2699.6,2699.2,0.072316]
[1730301136413,3.70452,2699.4,2699.2,0.072316]
[1730301138011,7.53592,2699.4,2699.2,0.072316]
[1730301138394,15.15601057,2699.4,2699.2,0.072316]
[1730301138597,3.71481,2699.2,2699.0,6e-06]
[1730301138804,12.35674337,2699.1,2699.0,6e-06]
[1730301139108,7.53661,2698.9,2698.8,6.36e-06]
[1730301139676,0.01,2698.6,2698.3,0.11424929]
[1730301139879,6.70589,2698.4,2698.3,0.11424929]
[1730301141712,3.70589,2698.4,2698.3,0.11424929]
[1730301141898,3.70577,2698.5,2698.3,0.11424929]
[1730301142314,3.0,2698.6,2698.4,0.0413394]
[1730301142488,3.70556,2698.7,2698.4,0.0413394]
[1730301143203,7.41115,2698.7,2698.4,0.0413394]
[1730301143490,3.70565,2698.6,2698.4,0.0413394]
[1730301143688,3.70556,2698.7,2698.4,0.0413394]
[1730301143915,3.7057,2698.6,2698.3,0.11424929]
[1730301144401,3.7057,2698.6,2698.4,0.0413394]
[1730301144727,3.70543,2698.8,2698.4,0.0413394]
[1730301144930,3.70576,2698.5,2698.4,0.0413394]
[1730301145234,3.70562,2698.6,2698.3,0.11424929]
[1730301145431,7.4109,2698.8,2698.4,0.0413394]
[1730301145727,3.70556,2698.7,2698.4,0.0413394]
[1730301145914,3.70486,2699.2,2698.4,0.0413394]
[1730301146119,3.70571,2698.6,2698.4,0.0413394]
[1730301146436,3.70576,2698.5,2698.4,0.0413394]
[1730301146604,3.70589,2698.4,2698.3,0.11424929]
[1730301147127,3.70576,2698.5,2698.3,0.11424929]
[1730301147440,7.62009057,2699.4,2698.4,4.53769499]
[1730301147441,3.705,2699.1,2698.4,4.53769499]
[1730301147588,7.62009057,2699.4,2698.5,0.46519443]
[1730301147793,3.70488,2699.2,2698.6,0.04142901]
[1730301147991,3.70466,2699.3,2698.6,3.70555]
[1730301148235,3.70446,2699.5,2698.7,0.81035132]
[1730301148436,3.70468,2699.3,2698.7,4.51582132]
[1730301148597,3.70446,2699.5,2698.8,3.77937708]
[1730301148789,7.4084,2699.7,2698.9,3.74650496]
[1730301149153,3.70418,2699.7,2699.1,0.83]
[1730301149296,1.23396511,2700.5,2699.2,3.77876399]
[1730301149495,3.70366,2700.1,2699.4,4.53442]
[1730301149716,3.70346,2700.2,2699.5,3.81949553]
[1730301149935,7.62009057,2700.7,2699.5,0.11512553]
[1730301150236,3.70425,2699.6,2699.5,0.04104548]
[1730301151089,6.70425,2699.6,2699.5,0.04104548]
[1730301151296,3.70474,2699.3,2699.0,0.8026]
[1730301151598,3.0,2700.3,2699.1,0.84435384]
[1730301151794,3.70421,2699.7,2699.1,1.30484479]
[1730301152066,7.4084,2699.7,2699.1,1.30484479]
[1730301152223,3.70445,2699.5,2699.1,1.30484479]
[1730301152424,3.70453,2699.4,2699.1,0.84435384]
[1730301152629,3.7048,2699.2,2699.1,0.04115384]
[1730301152798,3.70535,2698.8,2698.7,0.7707]
[1730301152992,3.70584,2698.5,2698.2,0.7964]
[1730301153499,3.70555,2698.7,2698.2,0.7964]
[1730301153694,3.70507,2699.1,2698.4,3.70588]
[1730301153894,3.70507,2699.1,2698.4,4.16753293]
[1730301154117,3.0,2699.4,2698.5,0.7964]
[1730301154118,3.70543,2698.8,2698.5,0.7964]
[1730301154293,3.70513,2699.0,2698.5,0.7964]
[1730301154694,3.70488,2699.2,2698.5,0.87050639]
[1730301155124,3.70488,2699.2,2698.5,0.7964]
[1730301155323,3.705,2699.1,2698.6,0.450222]
[1730301155843,3.70508,2699.0,2698.6,0.450222]
[1730301156158,3.70508,2699.0,2698.5,0.7964]
[1730301156363,3.70466,2699.3,2698.5,0.7964]
[1730301156588,3.70545,2698.8,2698.5,0.7964]
[1730301156870,3.70562,2698.6,2698.5,0.7964]
[1730301157019,3.70589,2698.4,2698.3,0.11424929]
[1730301158955,6.70589,2698.4,2698.3,0.11424929]
[1730301159942,3.70589,2698.4,2698.3,0.11424929]
[1730301160139,3.70576,2698.5,2698.3,0.92874929]
[1730301160352,3.70539,2698.8,2698.3,0.92874929]
[1730301160554,3.70548,2698.7,2698.4,0.03517508]
[1730301160926,3.70539,2698.8,2698.4,0.03517508]
[1730301161121,3.7055,2698.7,2698.4,0.03517508]
[1730301161351,3.70515,2699.0,2698.4,0.03517508]
[1730301161565,3.70515,2699.0,2698.4,0.50216952]
[1730301161876,3.70528,2698.9,2698.4,0.50216952]
[1730301162163,3.70515,2699.0,2698.4,0.50216952]
[1730301162164,7.41035,2699.0,2698.4,0.50216952]
[1730301162361,0.7719,2699.5,2698.4,0.50216952]
[1730301162362,3.70541,2698.8,2698.4,0.50216952]
[1730301162566,3.70541,2698.8,2698.4,0.03517508]
[1730301162767,3.70516,2699.0,2698.4,0.03517508]
[1730301162768,3.70516,2699.0,2698.4,0.10928584]
[1730301162972,7.41034,2699.0,2698.4,3.74099508]
[1730301163127,3.70516,2699.0,2698.4,0.03517508]
[1730301163338,3.70529,2698.9,2698.4,0.03517508]
[1730301163542,3.705,2699.1,2698.5,3.70574]
[1730301163983,3.70414,2699.7,2698.7,0.8127]
[1730301164187,3.70414,2699.7,2698.6,3.74055298]
[1730301164188,4.53098,2698.7,2698.6,0.03500298]
[1730301164340,3.70589,2698.4,2698.3,0.11424929]
[1730301165746,6.70589,2698.4,2698.3,0.11424929]
[1730301166968,3.70589,2698.4,2698.3,0.11424929]
[1730301167839,12.68996818,2698.4,2698.3,9.29e-06]
[1730301168044,16.23996818,2698.4,2698.3,9.29e-06]
[1730301168497,15.68996818,2698.4,2698.3,9.29e-06]
[1730301168788,7.54142,2697.8,2697.7,8.17e-06]
[1730301168967,12.94362098,2697.8,2697.7,8.17e-06]
[1730301169458,20.56371155,2697.8,2697.7,8.17e-06]
[1730301170185,3.70823,2696.7,2696.6,0.02477626]
[1730301172173,7.53793,2696.7,2696.6,0.02477626]
[1730301172886,3.70823,2696.7,2696.6,0.02477626]
[1730301173289,7.52223,2696.7,2696.6,6.26e-06]
[1730301173490,6.70823,2696.7,2696.6,6.26e-06]
[1730301174847,3.70811,2696.8,2695.4,0.7219238]
[1730301174848,0.8241,2695.9,2695.4,0.7219238]
[1730301175061,3.70988,2695.5,2695.4,0.7219238]
[1730301175849,11.32997057,2695.5,2695.4,0.7219238]
[1730301176295,15.15657057,2695.5,2695.4,3.8e-06]
[1730301176892,12.15657057,2695.5,2695.4,3.8e-06]
[1730301177652,11.32997057,2695.5,2695.4,3.8e-06]
[1730301178669,3.70975,2695.6,2695.4,3.8e-06]
[1730301179356,3.70954,2695.8,2695.4,3.8e-06]
[1730301179998,3.70962,2695.7,2695.4,3.8e-06]
[1730301180200,3.70954,2695.8,2695.4,3.8e-06]
[1730301180370,3.70951,2695.8,2695.4,3.8e-06]
[1730301180570,3.70933,2695.9,2695.4,3.8e-06]
[1730301180900,3.70988,2695.5,2695.4,3.8e-06]
[1730301181259,4.26269409,2695.5,2695.4,3.8e-06]
[1730301181571,3.72043,2695.1,2695.0,0.5]
[1730301181777,3.72043,2695.1,2694.3,0.74013161]
[1730301181778,3.7114,2694.4,2694.3,0.74013161]
[1730301182811,3.71222,2693.8,2693.7,0.132316]
[1730301183016,12.36203337,2693.8,2693.7,6e-06]
[1730301183159,3.71209,2693.9,2693.7,6e-06]
[1730301183360,3.71186,2694.1,2693.7,6e-06]
[1730301183561,3.71191,2694.1,2693.7,6e-06]
[1730301183909,3.71123,2694.6,2693.9,3.71199]
[1730301184074,3.71123,2694.6,2694.0,1.191199]
[1730301184775,3.71123,2694.6,2694.0,0.82]
[1730301185004,3.71127,2694.5,2694.0,0.82]
[1730301185203,3.71129,2694.5,2694.0,0.82]
[1730301185508,3.71123,2694.6,2694.0,0.82]
[1730301186059,3.71094,2694.8,2694.1,0.07423372]
[1730301186265,3.71016,2695.3,2694.5,3.71124]
[1730301186569,3.71081,2694.9,2694.7,0.8018]
[1730301186763,3.70998,2695.5,2694.7,0.8018]
[1730301186965,3.70996,2695.5,2694.7,0.8018]
[1730301187192,3.70956,2695.8,2695.1,3.71042]
[1730301187418,3.70942,2695.9,2695.3,3.71014]
[1730301187564,3.70973,2695.7,2695.4,0.7529]
[1730301187771,3.7094,2695.9,2695.4,0.7529]
[1730301188011,3.70961,2695.7,2695.4,0.7529]
[1730301188508,7.62009057,2696.3,2695.4,4.4629]
[1730301188693,3.70969,2695.7,2695.4,0.7529]
[1730301189209,3.70941,2695.9,2695.4,0.7529]
[1730301189210,3.70939,2695.9,2695.4,0.7529]
[1730301189579,3.70969,2695.7,2695.4,0.7529]
[1730301190121,3.7094,2695.9,2695.1,3.71042]
[1730301190323,7.41885,2695.9,2695.3,3.71013]
[1730301190612,3.70982,2695.6,2695.4,0.371013]
[1730301190818,3.70982,2695.6,2695.0,4.47955]
[1730301191117,3.70998,2695.5,2695.0,0.7691]
[1730301191285,3.71024,2695.3,2695.0,0.7691]
[1730301191467,3.70997,2695.5,2695.0,0.7691]
[1730301192121,3.7097,2695.7,2695.1,3.71034]
[1730301192265,3.70942,2695.9,2695.1,3.71034]
[1730301192470,3.70971,2695.7,2695.1,3.71035]
[1730301192694,3.70978,2695.6,2695.0,4.47967]
[1730301192869,3.70978,2695.6,2695.1,0.448967]
[1730301193442,3.70985,2695.6,2695.0,4.47954]
[1730301193741,3.70985,2695.6,2695.1,0.07420103]
[1730301193942,3.71,2695.5,2694.8,3.71076]
[1730301194127,3.71026,2695.3,2694.7,3.71097]
[1730301194303,3.70949,2695.8,2694.5,0.7995]
[1730301194511,3.71043,2695.1,2694.5,0.7995]
[1730301194721,3.71072,2694.9,2694.5,0.7995]
[1730301194931,3.71058,2695.0,2694.5,0.7995]
[1730301195243,3.71074,2694.9,2694.6,0.451082]
[1730301195451,3.71102,2694.7,2694.5,0.7995]
[1730301195604,3.71098,2694.7,2693.8,3.7121]
[1730301195803,0.8115,2695.3,2693.9,0.7539]
[1730301196108,3.71113,2694.6,2694.0,3.72184]
[1730301196316,3.71092,2694.8,2694.2,3.71164]
[1730301196619,3.71038,2695.2,2694.6,3.71105]
[1730301196933,3.71013,2695.4,2694.8,3.7108]
[1730301197305,3.71013,2695.4,2694.9,3.71071]
[1730301197512,7.24057538,2696.3,2694.9,3.71071]
[1730301197513,3.70963,2695.7,2695.0,4.52806]
[1730301197743,7.41913,2695.8,2695.2,3.71027]
[1730301198045,3.70955,2695.8,2695.2,7.42049]
[1730301198244,3.70955,2695.8,2695.2,3.71022]
[1730301198425,3.70955,2695.8,2695.3,0.4164026]
[1730301198824,3.70963,2695.7,2695.3,0.4164026]
[1730301199148,7.41916,2695.8,2695.3,0.4164026]
[1730301199353,3.70968,2695.7,2695.3,0.4164026]
[1730301199550,3.71072,2694.9,2694.7,0.7777]
[1730301199912,3.71072,2694.9,2694.0,0.02]
[1730301199913,3.71148,2694.4,2694.0,0.7777]
[1730301201314,3.71169,2694.2,2694.0,0.7777]
[1730301202053,7.42296,2694.4,2694.0,0.7777]
[1730301202212,3.71154,2694.3,2694.0,0.7777]
[1730301202413,3.71181,2694.1,2694.0,0.7777]
[1730301202810,3.71221,2693.9,2693.7,6e-06]
[1730301203057,3.71222,2693.8,2693.7,6e-06]
[1730301205108,4.51372,2693.8,2693.7,6e-06]
[1730301205530,4.51372,2693.8,2693.2,0.75833942]
[1730301205531,3.71282,2693.4,2693.2,0.50834542]
[1730301205862,3.71272,2693.5,2693.2,0.50834542]
[1730301206157,3.71135,2694.5,2693.7,3.71227]
[1730301206311,0.40085281,2695.1,2693.8,1.141227]
[1730301206514,3.71056,2695.1,2694.0,3.71187]
[1730301206714,7.42241,2694.6,2694.0,3.71187]
[1730301206952,0.782,2695.0,2693.8,0.77]
[1730301207211,0.782,2695.0,2693.2,0.51834542]
[1730301207212,3.71291,2693.3,2693.2,0.50834542]
[1730301210872,3.71279,2693.4,2693.2,0.50834542]
[1730301211076,3.71291,2693.3,2693.2,0.50834542]
[1730301213087,3.71279,2693.4,2693.2,0.50834542]
[1730301213241,3.71258,2693.6,2693.2,1.27614542]
[1730301213438,0.7647,2694.8,2693.3,0.08425609]
[1730301213646,3.71107,2694.7,2694.0,0.7678]
[1730301213847,3.71043,2695.1,2694.0,0.7778]
[1730301214073,3.71043,2695.1,2694.5,3.71118]
[1730301214274,3.71043,2695.1,2694.6,0.7752]
[1730301214777,3.71065,2695.0,2694.6,0.7752]
[1730301214935,3.71071,2694.9,2694.6,0.7752]
[1730301215136,0.8208,2695.6,2694.2,0.8]
[1730301215353,3.71125,2694.6,2694.2,0.8]
[1730301215549,0.53171538,2695.0,2694.2,0.8]
[1730301215550,3.71135,2694.5,2694.2,0.8]
[1730301215753,3.71148,2694.4,2694.2,0.8]
[1730301216352,3.71153,2694.3,2694.2,0.8]
[1730301216553,3.71148,2694.4,2694.2,0.8]
[1730301216879,3.71118,2694.6,2694.0,3.71193]
[1730301217183,3.71142,2694.4,2694.1,0.447863]
[1730301217341,3.71177,2694.2,2693.9,1.04233465]
[1730301217536,3.71177,2694.2,2693.5,3.71256]
[1730301217537,7.42355,2694.2,2693.6,0.27563465]
[1730301217741,3.71177,2694.2,2693.7,0.47504547]
[1730301218148,4.53973,2694.9,2693.5,0.7623]
[1730301218149,3.71071,2694.9,2693.5,0.7623]
[1730301218448,3.71166,2694.3,2693.7,3.71236]
[1730301218650,3.71126,2694.5,2693.7,0.27563465]
[1730301218850,3.71202,2694.0,2693.3,3.71289]
[1730301219049,3.71202,2694.0,2693.4,3.78701805]
[1730301219285,3.71093,2694.8,2693.9,3.71199]
[1730301219492,3.71093,2694.8,2694.1,3.71179]
[1730301219797,3.71134,2694.5,2694.1,0.742382]
[1730301219962,3.71134,2694.5,2693.9,0.27601458]
[1730301220165,0.7605,2694.3,2693.8,0.27601458]
[1730301220365,3.71216,2693.9,2693.4,0.27601458]
[1730301220572,3.71216,2693.9,2693.3,1.03931458]
[1730301220885,3.71216,2693.9,2693.3,4.47619]
[1730301221126,3.71195,2694.0,2693.4,0.86975054]
[1730301221251,3.71169,2694.2,2693.5,3.71262]
[1730301221448,3.71162,2694.3,2693.6,4.17071705]
[1730301221648,3.71182,2694.1,2693.6,0.73425163]
[1730301221890,3.71182,2694.1,2693.7,0.44468616]
[1730301222056,3.7125,2693.6,2693.5,0.27601458]
[1730301222250,3.71291,2693.3,2693.2,0.50834542]
[1730301224220,4.48051,2693.3,2693.2,0.50834542]
[1730301225265,3.71291,2693.3,2693.2,0.50834542]
[1730301226512,3.71258,2693.6,2693.2,0.50834542]
[1730301226715,3.71264,2693.5,2693.2,0.50834542]
[1730301226869,3.7125,2693.6,2693.2,0.50834542]
[1730301227070,3.71206,2694.0,2693.3,0.7736]
[1730301227340,3.71153,2694.3,2693.4,0.07425184]
[1730301227624,3.71125,2694.6,2694.0,0.8083]
[1730301227830,3.71092,2694.8,2694.0,0.8083]
[1730301227978,0.7756,2695.1,2694.0,0.8083]
[1730301228186,0.89923486,2695.7,2694.4,3.71139]
[1730301228187,3.71033,2695.2,2694.4,3.71139]
[1730301228387,3.71083,2694.9,2694.4,0.371139]
[1730301228587,3.71083,2694.9,2694.2,3.71158]
[1730301229296,3.7111,2694.7,2694.0,4.52016]
[1730301229631,3.71129,2694.5,2694.0,0.8083]
[1730301229922,7.42266,2694.5,2694.0,1.260343]
[1730301230129,3.71147,2694.4,2694.0,1.260343]
[1730301230298,3.71147,2694.4,2694.0,0.8083]
[1730301230625,3.71129,2694.5,2694.0,0.8083]
[1730301231127,3.71143,2694.4,2694.0,0.8083]
[1730301231421,3.71162,2694.3,2693.6,0.7791]
[1730301231619,3.71162,2694.3,2693.6,0.7691]
[1730301231825,3.71162,2694.3,2693.7,0.448164]
[1730301232009,3.71162,2694.3,2693.7,4.160454]
[1730301232333,0.7755,2694.8,2693.7,0.448164]
[1730301232497,3.71195,2694.0,2693.6,0.7691]
[1730301232837,3.71174,2694.2,2693.6,0.7691]
[1730301233141,3.7123,2693.8,2693.6,0.7691]
[1730301233344,3.71236,2693.8,2693.2,1.29114542]
[1730301233693,3.71243,2693.7,2693.2,1.29114542]
[1730301233894,3.71247,2693.7,2693.2,1.29114542]
[1730301234201,3.71264,2693.5,2693.2,1.29114542]
[1730301234627,3.71245,2693.7,2693.2,1.29114542]
[1730301234857,7.42492,2693.7,2693.2,1.29114542]
[1730301235039,3.71245,2693.7,2693.2,1.29114542]
[1730301235239,3.71219,2693.9,2693.2,1.29114542]
[1730301235553,3.71219,2693.9,2693.3,3.78715942]
[1730301235762,3.71219,2693.9,2693.4,0.50783048]
[1730301236252,3.71217,2693.9,2693.4,0.50783048]
[1730301236447,3.71217,2693.9,2693.2,1.29114542]
[1730301236654,3.71238,2693.7,2693.2,1.29114542]
[1730301237018,3.71273,2693.5,2693.2,1.29114542]
[1730301237365,7.42548,2693.5,2693.2,1.29114542]
[1730301237567,3.71273,2693.5,2693.2,0.50834542]
[1730301237779,7.42547,2693.5,2693.2,0.50834542]
[1730301237980,3.71243,2693.7,2693.2,0.50834542]
[1730301238736,7.42436,2693.9,2693.2,4.22132542]
[1730301238931,3.71244,2693.7,2693.2,0.50834542]
[1730301239132,3.71232,2693.8,2693.2,0.50834542]
[1730301239567,3.71232,2693.8,2693.2,4.22138542]
[1730301239769,3.71232,2693.8,2693.2,5.01483396]
[1730301240074,3.71284,2693.4,2693.2,0.50834542]
[1730301240376,3.71291,2693.3,2693.2,0.50834542]
[1730301242066,3.71284,2693.4,2693.2,0.50834542]
[1730301242276,3.71257,2693.6,2693.2,0.50834542]
[1730301242512,3.71212,2693.9,2693.2,0.50834542]
[1730301242721,0.8268,2694.0,2693.2,0.50834542]
[1730301242722,3.71274,2693.5,2693.2,0.50834542]
[1730301242932,3.71291,2693.3,2693.2,0.50834542]
[1730301244915,4.50121,2693.3,2693.2,0.50834542]
[1730301245786,3.71291,2693.3,2693.2,0.50834542]
[1730301246620,3.71244,2693.7,2693.2,1.28174542]
[1730301246832,0.7608,2694.0,2693.2,1.28174542]
[1730301246980,4.47276,2694.0,2693.2,0.50834542]
[1730301247182,3.71291,2693.3,2693.2,0.50834542]
[1730301247919,3.71279,2693.4,2693.2,0.50834542]
[1730301248118,3.71282,2693.4,2693.2,0.50834542]
[1730301248617,3.71264,2693.5,2693.2,0.50834542]
[1730301248921,7.42538,2693.5,2693.2,0.50834542]
[1730301249123,3.71291,2693.3,2693.2,0.50834542]
[1730301252026,3.71221,2693.9,2693.2,0.50834542]
[1730301252220,3.7608,2694.0,2693.2,0.50834542]
[1730301252221,3.71252,2693.6,2693.2,0.50834542]
[1730301252764,3.71209,2693.9,2693.4,3.71276]
[1730301252935,3.71209,2693.9,2693.5,0.7704]
[1730301253123,7.62009057,2694.1,2693.5,0.7704]
[1730301253324,0.8,2693.8,2693.2,0.50834542]
[1730301253676,3.71242,2693.7,2693.2,4.22132542]
[1730301253865,7.42486,2693.7,2693.2,4.22132542]
[1730301254029,3.71242,2693.7,2693.2,4.22132542]
[1730301254221,7.42486,2693.7,2693.2,4.22132542]
[1730301254424,3.71242,2693.7,2693.2,4.22132542]
[1730301254654,3.71242,2693.7,2693.2,0.50834542]
[1730301255369,3.71255,2693.6,2693.2,0.50834542]
[1730301255670,3.71161,2694.3,2693.6,3.71248]
[1730301255825,3.71112,2694.6,2693.3,0.819]
[1730301256158,4.50251,2694.7,2693.6,3.71241]
[1730301256159,3.71163,2694.3,2693.6,3.71241]
[1730301256373,3.71176,2694.2,2693.6,4.083651]
[1730301256536,3.71163,2694.3,2693.6,4.083651]
[1730301256740,3.71175,2694.2,2693.6,4.083651]
[1730301256932,7.42353,2694.2,2693.6,4.083731]
[1730301257138,3.71175,2694.2,2693.6,7.796151]
[1730301257334,3.71175,2694.2,2693.7,3.71229]
[1730301257573,3.71149,2694.4,2693.7,0.7796151]